[Event "*** Titled Tuesday Blitz"]
[Site "Chess.com"]
[Date "2020.03.03"]
[Round "7"]
[White "SerGo055"]
[Black "MusicCityMaster"]
[Result "1-0"]
[WhiteElo "2523"]
[BlackElo "2385"]
[TimeControl "180+1"]
[EndTime "14:14:25 PST"]
[Termination "SerGo055 won by resignation"]

1. d4 {[%clk 0:03:00.6]} 1... Nf6 {[%clk 0:02:59.2]} 2. Nf3 {[%clk 0:03:00.3]}
2... c5 {[%clk 0:02:58.9]} 3. c3 {[%clk 0:02:59.2]} 3... e6 {[%clk 0:02:56]} 4.
Bf4 {[%clk 0:02:57.6]} 4... d5 {[%clk 0:02:54.3]} 5. e3 {[%clk 0:02:57.6]} 5...
Nc6 {[%clk 0:02:52.3]} 6. Nbd2 {[%clk 0:02:55.2]} 6... Bd6 {[%clk 0:02:51.8]} 7.
Ne5 {[%clk 0:02:55.3]} 7... Qe7 {[%clk 0:02:43.1]} 8. Bg3 {[%clk 0:02:52.3]}
8... h5 {[%clk 0:02:34.2]} 9. f4 {[%clk 0:02:51.1]} 9... h4 {[%clk 0:02:34]} 10.
Bf2 {[%clk 0:02:50.6]} 10... Bd7 {[%clk 0:02:31.4]} 11. Be2 {[%clk 0:02:44.4]}
11... O-O-O {[%clk 0:02:26.6]} 12. Qc2 {[%clk 0:02:33.7]} 12... Kb8 {[%clk
0:02:26.1]} 13. a4 {[%clk 0:02:31.8]} 13... Rc8 {[%clk 0:02:16.4]} 14. a5 {[%clk
0:02:28.4]} 14... Ne8 {[%clk 0:01:58.1]} 15. Bf3 {[%clk 0:02:18.9]} 15... cxd4
{[%clk 0:01:48.2]} 16. exd4 {[%clk 0:02:18]} 16... Bxe5 {[%clk 0:01:24.2]} 17.
dxe5 {[%clk 0:02:07.4]} 17... f6 {[%clk 0:01:06]} 18. O-O {[%clk 0:02:04]} 18...
fxe5 {[%clk 0:01:02.3]} 19. fxe5 {[%clk 0:02:04]} 19... Nxe5 {[%clk 0:00:58.4]}
20. Rfe1 {[%clk 0:02:03.6]} 20... Nxf3+ {[%clk 0:00:55.8]} 21. Nxf3 {[%clk
0:02:04.5]} 21... h3 {[%clk 0:00:46.3]} 22. Qd3 {[%clk 0:01:54]} 22... Nd6
{[%clk 0:00:34.1]} 23. Qxd5 {[%clk 0:01:48.9]} 23... Bc6 {[%clk 0:00:26.4]} 24.
Qe5 {[%clk 0:01:38.2]} 24... Ka8 {[%clk 0:00:24.4]} 25. Qe3 {[%clk 0:01:29]}
25... b5 {[%clk 0:00:13.5]} 26. axb6 {[%clk 0:01:27.3]} 26... Nb5 {[%clk
0:00:12.2]} 27. Nd4 {[%clk 0:01:20.7]} 27... Qb7 {[%clk 0:00:06.6]} 28. Nxb5
{[%clk 0:01:18.3]} 1-0

[Event "*** Titled Tuesday Blitz"]
[Site "Chess.com"]
[Date "2020.03.03"]
[Round "7"]
[White "Atanejhad"]
[Black "deBaller"]
[Result "1-0"]
[WhiteElo "2587"]
[BlackElo "2356"]
[TimeControl "180+1"]
[EndTime "14:14:26 PST"]
[Termination "Atanejhad won by resignation"]

1. e4 {[%clk 0:03:00.9]} 1... e6 {[%clk 0:02:59.9]} 2. d4 {[%clk 0:03:00.4]}
2... d5 {[%clk 0:02:59.7]} 3. Nd2 {[%clk 0:03:01.3]} 3... a6 {[%clk 0:02:59.2]}
4. Ngf3 {[%clk 0:02:58.6]} 4... c5 {[%clk 0:02:58.6]} 5. exd5 {[%clk 0:02:58.5]}
5... exd5 {[%clk 0:02:58.3]} 6. dxc5 {[%clk 0:02:56]} 6... Bxc5 {[%clk
0:02:59.2]} 7. Bd3 {[%clk 0:02:56.6]} 7... Nf6 {[%clk 0:02:56.1]} 8. O-O {[%clk
0:02:57.5]} 8... O-O {[%clk 0:02:55.6]} 9. Nb3 {[%clk 0:02:56.3]} 9... Bb6
{[%clk 0:02:55.2]} 10. Bg5 {[%clk 0:02:55.2]} 10... h6 {[%clk 0:02:54]} 11. Bf4
{[%clk 0:02:54.3]} 11... Nc6 {[%clk 0:02:53.4]} 12. h3 {[%clk 0:02:53.8]} 12...
Ne4 {[%clk 0:02:49.9]} 13. c3 {[%clk 0:02:51.9]} 13... Be6 {[%clk 0:02:43.8]}
14. Nfd4 {[%clk 0:02:46]} 14... Nxd4 {[%clk 0:02:42.2]} 15. Nxd4 {[%clk
0:02:46.9]} 15... Bxd4 {[%clk 0:02:37.3]} 16. cxd4 {[%clk 0:02:46.3]} 16... Qb6
{[%clk 0:02:37.2]} 17. Bxe4 {[%clk 0:02:11.3]} 17... dxe4 {[%clk 0:02:38.1]} 18.
d5 {[%clk 0:02:11.6]} 18... Rfd8 {[%clk 0:02:31.5]} 19. d6 {[%clk 0:02:11.8]}
19... Bc4 {[%clk 0:02:20.1]} 20. Re1 {[%clk 0:02:09.8]} 20... Bd3 {[%clk
0:02:20.1]} 21. b3 {[%clk 0:02:05]} 21... Rac8 {[%clk 0:02:15.9]} 22. Rc1 {[%clk
0:02:04.8]} 22... Rxc1 {[%clk 0:02:13.4]} 23. Qxc1 {[%clk 0:02:05.7]} 23... Kf8
{[%clk 0:02:02.7]} 24. Qc3 {[%clk 0:01:59]} 24... Qc6 {[%clk 0:01:49.4]} 25. Qd4
{[%clk 0:01:53.1]} 25... Qb5 {[%clk 0:01:13]} 26. Bxh6 {[%clk 0:01:38]} 26...
Ke8 {[%clk 0:01:00.7]} 27. Bxg7 {[%clk 0:01:32.6]} 27... Kd7 {[%clk 0:00:59.5]}
28. Be5 {[%clk 0:01:25.7]} 28... Re8 {[%clk 0:00:57]} 29. Bg3 {[%clk 0:01:25]}
29... Qc6 {[%clk 0:00:50.2]} 30. Qf6 {[%clk 0:01:21.3]} 30... Qd5 {[%clk
0:00:38.7]} 31. Rc1 {[%clk 0:01:21.2]} 31... Bc2 {[%clk 0:00:38.4]} 32. Rxc2
{[%clk 0:01:13.6]} 32... Qd1+ {[%clk 0:00:37.7]} 33. Kh2 {[%clk 0:01:13.9]}
33... Qxc2 {[%clk 0:00:38.6]} 34. Qxf7+ {[%clk 0:01:13.2]} 34... Kd8 {[%clk
0:00:39.2]} 35. Bh4+ {[%clk 0:01:12.6]} 35... Re7 {[%clk 0:00:38.2]} 36. Qxe7+
{[%clk 0:01:12.3]} 1-0

[Event "*** Titled Tuesday Blitz"]
[Site "Chess.com"]
[Date "2020.03.03"]
[Round "7"]
[White "Mbneu"]
[Black "kinga2008"]
[Result "1-0"]
[WhiteElo "2211"]
[BlackElo "1943"]
[TimeControl "180+1"]
[EndTime "14:14:30 PST"]
[Termination "Mbneu won on time"]

1. d4 {[%clk 0:03:00.9]} 1... Nf6 {[%clk 0:02:59.9]} 2. c4 {[%clk 0:02:54.8]}
2... g6 {[%clk 0:02:59]} 3. Nc3 {[%clk 0:02:53.7]} 3... Bg7 {[%clk 0:02:59]} 4.
e4 {[%clk 0:02:52.7]} 4... d6 {[%clk 0:02:58.9]} 5. f4 {[%clk 0:02:53.1]} 5...
c5 {[%clk 0:02:56.5]} 6. d5 {[%clk 0:02:51.6]} 6... O-O {[%clk 0:02:56]} 7. Nf3
{[%clk 0:02:52]} 7... e6 {[%clk 0:02:56.5]} 8. Be2 {[%clk 0:02:50.7]} 8... exd5
{[%clk 0:02:56.1]} 9. cxd5 {[%clk 0:02:51.6]} 9... Re8 {[%clk 0:02:56.1]} 10. e5
{[%clk 0:02:51.1]} 10... dxe5 {[%clk 0:02:56.5]} 11. fxe5 {[%clk 0:02:51.3]}
11... Ng4 {[%clk 0:02:57.2]} 12. e6 {[%clk 0:02:51.8]} 12... fxe6 {[%clk
0:02:51.8]} 13. Bg5 {[%clk 0:02:51.8]} 13... Qb6 {[%clk 0:02:50.2]} 14. Qd2
{[%clk 0:02:50.5]} 14... e5 {[%clk 0:02:22.1]} 15. O-O {[%clk 0:02:44.4]} 15...
Bf5 {[%clk 0:02:05.9]} 16. Nh4 {[%clk 0:02:40.7]} 16... h6 {[%clk 0:01:24.9]}
17. Nxf5 {[%clk 0:02:33.3]} 17... gxf5 {[%clk 0:01:20.7]} 18. Bxg4 {[%clk
0:02:25.6]} 18... fxg4 {[%clk 0:01:01.7]} 19. Be3 {[%clk 0:02:04.8]} 19... Nd7
{[%clk 0:01:01.1]} 20. d6 {[%clk 0:01:49.8]} 20... Qc6 {[%clk 0:00:48]} 21. Bxh6
{[%clk 0:01:46.6]} 21... Re6 {[%clk 0:00:40.5]} 22. Bxg7 {[%clk 0:01:43.4]}
22... Kxg7 {[%clk 0:00:40.1]} 23. Qg5+ {[%clk 0:01:42]} 23... Rg6 {[%clk
0:00:34.2]} 24. Qe7+ {[%clk 0:01:41.3]} 24... Kh6 {[%clk 0:00:27.7]} 25. Rf7
{[%clk 0:01:39.8]} 25... Nf6 {[%clk 0:00:17.9]} 26. Rxf6 {[%clk 0:01:37.9]}
26... Rg8 {[%clk 0:00:14.4]} 27. Rxg6+ {[%clk 0:01:24.9]} 27... Rxg6 {[%clk
0:00:11.9]} 28. d7 {[%clk 0:01:24.4]} 28... Rg8 {[%clk 0:00:01.8]} 29. Qh4+
{[%clk 0:01:17.7]} 1-0

[Event "*** Titled Tuesday Blitz"]
[Site "Chess.com"]
[Date "2020.03.03"]
[Round "7"]
[White "IngOscarArdila"]
[Black "SloLev"]
[Result "0-1"]
[WhiteElo "2184"]
[BlackElo "2529"]
[TimeControl "180+1"]
[EndTime "14:14:31 PST"]
[Termination "SloLev won by resignation"]

1. d4 {[%clk 0:03:00.9]} 1... d5 {[%clk 0:02:58.8]} 2. Nf3 {[%clk 0:02:59.6]}
2... Nf6 {[%clk 0:02:56.8]} 3. c4 {[%clk 0:02:59.8]} 3... e6 {[%clk 0:02:57.4]}
4. cxd5 {[%clk 0:02:58.3]} 4... exd5 {[%clk 0:02:57.7]} 5. Nc3 {[%clk
0:02:58.6]} 5... c6 {[%clk 0:02:58.2]} 6. Bg5 {[%clk 0:02:58.8]} 6... Bf5 {[%clk
0:02:57.4]} 7. e3 {[%clk 0:02:58.7]} 7... Nbd7 {[%clk 0:02:56.8]} 8. Be2 {[%clk
0:02:58.5]} 8... Be7 {[%clk 0:02:55.9]} 9. O-O {[%clk 0:02:58.5]} 9... O-O
{[%clk 0:02:56.4]} 10. a3 {[%clk 0:02:53.7]} 10... a5 {[%clk 0:02:50.5]} 11. Qb3
{[%clk 0:02:50.6]} 11... b5 {[%clk 0:02:46.7]} 12. Rac1 {[%clk 0:02:48.7]} 12...
Qb6 {[%clk 0:02:38.9]} 13. Rfd1 {[%clk 0:02:23.4]} 13... Bd6 {[%clk 0:02:27]}
14. Nh4 {[%clk 0:02:16.7]} 14... Be6 {[%clk 0:02:21.7]} 15. f4 {[%clk 0:02:14]}
15... Ne4 {[%clk 0:02:16.5]} 16. Nxe4 {[%clk 0:02:12.4]} 16... dxe4 {[%clk
0:02:16.6]} 17. Qc2 {[%clk 0:02:12.1]} 17... h6 {[%clk 0:02:14.2]} 18. f5 {[%clk
0:02:03.9]} 18... Bd5 {[%clk 0:01:44.8]} 19. Bf4 {[%clk 0:02:02.5]} 19... Bxf4
{[%clk 0:01:44.3]} 20. exf4 {[%clk 0:02:03.3]} 20... Rfe8 {[%clk 0:01:41.6]} 21.
Qd2 {[%clk 0:01:57]} 21... e3 {[%clk 0:01:40.9]} 22. Qe1 {[%clk 0:01:55.4]}
22... Nf6 {[%clk 0:01:34]} 23. Bf3 {[%clk 0:01:45.3]} 23... Rad8 {[%clk
0:01:26.5]} 24. Rd3 {[%clk 0:01:34.4]} 24... Bc4 {[%clk 0:01:23.1]} 25. Rdd1
{[%clk 0:00:43]} 25... e2 {[%clk 0:01:03.4]} 26. Rd2 {[%clk 0:00:41.9]} 26...
Rxd4 {[%clk 0:01:02.9]} 27. Kh1 {[%clk 0:00:40]} 27... Rxd2 {[%clk 0:01:00.2]}
28. Qxd2 {[%clk 0:00:40.3]} 28... Rd8 {[%clk 0:00:57.3]} 29. Qe1 {[%clk
0:00:39.3]} 29... Qe3 {[%clk 0:00:55]} 30. Bxc6 {[%clk 0:00:32.2]} 30... Qxc1
{[%clk 0:00:53.3]} 0-1

[Event "*** Titled Tuesday Blitz"]
[Site "Chess.com"]
[Date "2020.03.03"]
[Round "7"]
[White "RaphCamora"]
[Black "Mikasinski"]
[Result "1-0"]
[WhiteElo "2437"]
[BlackElo "2269"]
[TimeControl "180+1"]
[EndTime "14:14:44 PST"]
[Termination "RaphCamora won by checkmate"]

1. e4 {[%clk 0:03:00.3]} 1... c5 {[%clk 0:02:59.7]} 2. Nf3 {[%clk 0:02:59.2]}
2... d6 {[%clk 0:02:59.6]} 3. d4 {[%clk 0:02:59.2]} 3... cxd4 {[%clk 0:02:56.8]}
4. Nxd4 {[%clk 0:03:00.1]} 4... Nf6 {[%clk 0:02:56.7]} 5. Nc3 {[%clk 0:03:00.2]}
5... g6 {[%clk 0:02:54.4]} 6. Be3 {[%clk 0:02:59]} 6... Bg7 {[%clk 0:02:51.7]}
7. f3 {[%clk 0:02:59]} 7... Nc6 {[%clk 0:02:51.4]} 8. Qd2 {[%clk 0:02:56.6]}
8... O-O {[%clk 0:02:51.7]} 9. Bc4 {[%clk 0:02:55.7]} 9... Bd7 {[%clk
0:02:50.7]} 10. O-O-O {[%clk 0:02:54.3]} 10... Rc8 {[%clk 0:02:49.6]} 11. Bb3
{[%clk 0:02:54.8]} 11... Ne5 {[%clk 0:02:47.7]} 12. h4 {[%clk 0:02:51.1]} 12...
h5 {[%clk 0:02:44.1]} 13. g4 {[%clk 0:02:43.1]} 13... hxg4 {[%clk 0:02:42.4]}
14. h5 {[%clk 0:02:42.5]} 14... Nxh5 {[%clk 0:02:42.3]} 15. Bh6 {[%clk
0:02:08.2]} 15... e6 {[%clk 0:02:02.4]} 16. Bxg7 {[%clk 0:01:51]} 16... Kxg7
{[%clk 0:01:56.9]} 17. fxg4 {[%clk 0:01:35]} 17... Nxg4 {[%clk 0:01:49.2]} 18.
Rdg1 {[%clk 0:01:33.6]} 18... e5 {[%clk 0:01:18.7]} 19. Ndb5 {[%clk 0:01:33.2]}
19... Nf4 {[%clk 0:00:57.9]} 20. Nxd6 {[%clk 0:01:26.1]} 20... Rxc3 {[%clk
0:00:50.1]} 21. bxc3 {[%clk 0:01:25.4]} 21... Qa5 {[%clk 0:00:40.4]} 22. Nxf7
{[%clk 0:01:13.8]} 22... Bc6 {[%clk 0:00:09.1]} 23. Ng5 {[%clk 0:01:11.3]} 23...
Nf2 {[%clk 0:00:02.9]} 24. Rh7+ {[%clk 0:01:09.5]} 24... Kf6 {[%clk 0:00:03.2]}
25. Qd6+ {[%clk 0:01:02.8]} 25... Ne6 {[%clk 0:00:01.9]} 26. Qxe6# {[%clk
0:01:02.4]} 1-0

[Event "*** Titled Tuesday Blitz"]
[Site "Chess.com"]
[Date "2020.03.03"]
[Round "7"]
[White "enriquetejedor"]
[Black "mrkvoz"]
[Result "0-1"]
[WhiteElo "2550"]
[BlackElo "2801"]
[TimeControl "180+1"]
[EndTime "14:14:45 PST"]
[Termination "mrkvoz won by resignation"]

1. d4 {[%clk 0:02:50.1]} 1... d6 {[%clk 0:03:00.1]} 2. e4 {[%clk 0:02:49.7]}
2... Nf6 {[%clk 0:03:00.4]} 3. Nc3 {[%clk 0:02:50.2]} 3... e5 {[%clk 0:03:01]}
4. dxe5 {[%clk 0:02:50.2]} 4... dxe5 {[%clk 0:03:01.9]} 5. Qxd8+ {[%clk
0:02:50.6]} 5... Kxd8 {[%clk 0:03:02.7]} 6. Bc4 {[%clk 0:02:51.1]} 6... Ke8
{[%clk 0:03:02.7]} 7. f3 {[%clk 0:02:50.6]} 7... c6 {[%clk 0:03:02.5]} 8. Be3
{[%clk 0:02:49]} 8... Nbd7 {[%clk 0:03:02.1]} 9. a4 {[%clk 0:02:48.9]} 9... a5
{[%clk 0:03:01.5]} 10. Nge2 {[%clk 0:02:48.9]} 10... Bc5 {[%clk 0:03:01.9]} 11.
Kf2 {[%clk 0:02:48.8]} 11... Ke7 {[%clk 0:03:01.9]} 12. Rhd1 {[%clk 0:02:48.3]}
12... Bxe3+ {[%clk 0:03:00.2]} 13. Kxe3 {[%clk 0:02:48.2]} 13... Nb6 {[%clk
0:03:00.1]} 14. Bb3 {[%clk 0:02:47.9]} 14... Nfd7 {[%clk 0:03:00.3]} 15. Nc1
{[%clk 0:02:43.8]} 15... Nc5 {[%clk 0:03:00.3]} 16. Nd3 {[%clk 0:02:44.1]} 16...
Nbd7 {[%clk 0:02:57.4]} 17. Nxc5 {[%clk 0:02:40.5]} 17... Nxc5 {[%clk
0:02:58.3]} 18. Bc4 {[%clk 0:02:41.4]} 18... f6 {[%clk 0:02:55.4]} 19. b3 {[%clk
0:02:40.9]} 19... Rd8 {[%clk 0:02:51.3]} 20. Rxd8 {[%clk 0:02:39.3]} 20... Kxd8
{[%clk 0:02:52.2]} 21. Bg8 {[%clk 0:02:37.4]} 21... h6 {[%clk 0:02:52]} 22. h4
{[%clk 0:02:37.5]} 22... Ke7 {[%clk 0:02:52.1]} 23. h5 {[%clk 0:02:36.9]} 23...
Bg4 {[%clk 0:02:48.5]} 24. fxg4 {[%clk 0:02:34.6]} 24... Rxg8 {[%clk 0:02:48.4]}
25. Rd1 {[%clk 0:02:35.1]} 25... Ne6 {[%clk 0:02:45.8]} 26. Ne2 {[%clk
0:02:34.2]} 26... b5 {[%clk 0:02:42]} 27. Ra1 {[%clk 0:02:32.6]} 27... Ra8
{[%clk 0:02:40.4]} 28. axb5 {[%clk 0:02:32.5]} 28... cxb5 {[%clk 0:02:40.3]} 29.
Nc3 {[%clk 0:02:33.1]} 29... Nd4 {[%clk 0:02:39.2]} 30. Nd5+ {[%clk 0:02:32.7]}
30... Kd6 {[%clk 0:02:39.1]} 31. Kd3 {[%clk 0:02:30.8]} 31... Ra6 {[%clk
0:02:19.6]} 32. Ra3 {[%clk 0:02:27.4]} 32... Ne6 {[%clk 0:02:11.3]} 33. b4
{[%clk 0:02:25.1]} 33... a4 {[%clk 0:02:08.8]} 34. c4 {[%clk 0:02:25.1]} 34...
bxc4+ {[%clk 0:02:03.3]} 35. Kxc4 {[%clk 0:02:26]} 35... Ra8 {[%clk 0:01:49]}
36. b5 {[%clk 0:02:24.2]} 36... Nc5 {[%clk 0:01:46.2]} 37. Nb6 {[%clk
0:02:03.4]} 37... Rb8 {[%clk 0:01:36.2]} 38. Nxa4 {[%clk 0:02:00.2]} 38... Nxe4
{[%clk 0:01:35.2]} 39. Rd3+ {[%clk 0:02:00.1]} 39... Ke7 {[%clk 0:01:32.2]} 40.
b6 {[%clk 0:01:58.1]} 40... Nd6+ {[%clk 0:01:28]} 41. Kd5 {[%clk 0:01:57.6]}
41... Rd8 {[%clk 0:01:25.5]} 42. Kc6 {[%clk 0:01:47.3]} 42... Rc8+ {[%clk
0:01:24.3]} 43. Kd5 {[%clk 0:01:47.8]} 43... Rd8 {[%clk 0:01:01.4]} 44. Rb3
{[%clk 0:01:30.2]} 44... Nb7+ {[%clk 0:01:00.9]} 45. Ke4 {[%clk 0:01:02.8]}
45... Rd4+ {[%clk 0:00:59.7]} 46. Kf5 {[%clk 0:01:03.3]} 46... Rxa4 {[%clk
0:00:57]} 47. Rg3 {[%clk 0:00:58.7]} 47... Kf7 {[%clk 0:00:54.8]} 0-1

[Event "*** Titled Tuesday Blitz"]
[Site "Chess.com"]
[Date "2020.03.03"]
[Round "7"]
[White "stoleriu"]
[Black "NoGalloNoParty"]
[Result "1-0"]
[WhiteElo "2472"]
[BlackElo "2292"]
[TimeControl "180+1"]
[EndTime "14:14:52 PST"]
[Termination "stoleriu won on time"]

1. b3 {[%clk 0:03:00.9]} 1... e5 {[%clk 0:02:58]} 2. Bb2 {[%clk 0:03:01.8]} 2...
d6 {[%clk 0:02:57.2]} 3. e3 {[%clk 0:03:02.3]} 3... g6 {[%clk 0:02:57.1]} 4. f4
{[%clk 0:02:59.8]} 4... Bg7 {[%clk 0:02:57.1]} 5. Nf3 {[%clk 0:02:57]} 5... Nd7
{[%clk 0:02:55.4]} 6. Be2 {[%clk 0:02:51.9]} 6... Qe7 {[%clk 0:02:55.4]} 7. O-O
{[%clk 0:02:49.7]} 7... Ngf6 {[%clk 0:02:55.2]} 8. fxe5 {[%clk 0:02:49.5]} 8...
dxe5 {[%clk 0:02:53.4]} 9. Nc3 {[%clk 0:02:49.6]} 9... c6 {[%clk 0:02:52.2]} 10.
a4 {[%clk 0:02:48.9]} 10... a5 {[%clk 0:02:34.4]} 11. Kh1 {[%clk 0:02:46.7]}
11... e4 {[%clk 0:02:17.9]} 12. Nd4 {[%clk 0:02:42.5]} 12... Nc5 {[%clk
0:02:10]} 13. Ba3 {[%clk 0:02:35.8]} 13... O-O {[%clk 0:02:04]} 14. Qe1 {[%clk
0:02:32.2]} 14... Re8 {[%clk 0:02:00.7]} 15. Qh4 {[%clk 0:02:30.7]} 15... Bd7
{[%clk 0:01:52.2]} 16. Bxc5 {[%clk 0:02:18.9]} 16... Qxc5 {[%clk 0:01:49.5]} 17.
Rxf6 {[%clk 0:02:19.3]} 17... Bxf6 {[%clk 0:01:48.9]} 18. Qxf6 {[%clk
0:02:20.2]} 18... Qe5 {[%clk 0:01:46.8]} 19. Rf1 {[%clk 0:02:12.5]} 19... Qxf6
{[%clk 0:01:44.9]} 20. Rxf6 {[%clk 0:02:13.4]} 20... Rad8 {[%clk 0:01:38.7]} 21.
g4 {[%clk 0:02:06.7]} 21... Kg7 {[%clk 0:01:33.9]} 22. Rf4 {[%clk 0:02:04.5]}
22... c5 {[%clk 0:01:27]} 23. Ndb5 {[%clk 0:02:00.3]} 23... Bc6 {[%clk
0:01:26.1]} 24. Nb1 {[%clk 0:01:56.3]} 24... f6 {[%clk 0:01:17.2]} 25. Kg1
{[%clk 0:01:54.9]} 25... Re7 {[%clk 0:01:03.8]} 26. N5a3 {[%clk 0:01:44.6]}
26... g5 {[%clk 0:00:53.2]} 27. Rf5 {[%clk 0:01:43.4]} 27... b6 {[%clk
0:00:50.3]} 28. Nc4 {[%clk 0:01:43.6]} 28... Bd7 {[%clk 0:00:44.5]} 29. Rd5
{[%clk 0:01:42.8]} 29... Rb8 {[%clk 0:00:40.6]} 30. Rd6 {[%clk 0:01:42.9]} 30...
b5 {[%clk 0:00:37.4]} 31. axb5 {[%clk 0:01:42.7]} 31... Bxb5 {[%clk 0:00:37.2]}
32. Nc3 {[%clk 0:01:42.2]} 32... Be8 {[%clk 0:00:25.3]} 33. Nxa5 {[%clk
0:01:40.3]} 33... Ra8 {[%clk 0:00:24.9]} 34. Nc4 {[%clk 0:01:40.5]} 34... Ra1+
{[%clk 0:00:24.1]} 35. Kf2 {[%clk 0:01:41]} 35... Rh1 {[%clk 0:00:21.2]} 36. Kg2
{[%clk 0:01:39]} 36... Re1 {[%clk 0:00:20.9]} 37. Bf1 {[%clk 0:01:28.5]} 37...
Rc1 {[%clk 0:00:19.9]} 38. Nd5 {[%clk 0:01:24.2]} 38... Rd7 {[%clk 0:00:19.7]}
39. Nxf6 {[%clk 0:01:24.1]} 39... Rxd6 {[%clk 0:00:19.3]} 40. Nxe8+ {[%clk
0:01:23.2]} 40... Kf8 {[%clk 0:00:18.9]} 41. Nexd6 {[%clk 0:01:24.1]} 1-0

[Event "*** Titled Tuesday Blitz"]
[Site "Chess.com"]
[Date "2020.03.03"]
[Round "7"]
[White "Snegokhod"]
[Black "MaxLeto"]
[Result "1-0"]
[WhiteElo "2588"]
[BlackElo "2398"]
[TimeControl "180+1"]
[EndTime "14:15:00 PST"]
[Termination "Snegokhod won on time"]

1. e4 {[%clk 0:03:00.9]} 1... c5 {[%clk 0:02:59.9]} 2. Nf3 {[%clk 0:02:59.8]}
2... d6 {[%clk 0:03:00.2]} 3. d4 {[%clk 0:02:57.7]} 3... cxd4 {[%clk 0:03:01.1]}
4. Qxd4 {[%clk 0:02:57.4]} 4... a6 {[%clk 0:02:59.3]} 5. Be3 {[%clk 0:02:56.4]}
5... Nc6 {[%clk 0:02:59.4]} 6. Qb6 {[%clk 0:02:56.2]} 6... Qxb6 {[%clk
0:02:41.7]} 7. Bxb6 {[%clk 0:02:57.1]} 7... Nf6 {[%clk 0:02:41.7]} 8. Nc3 {[%clk
0:02:56.4]} 8... e6 {[%clk 0:02:37.3]} 9. O-O-O {[%clk 0:02:55.5]} 9... Be7
{[%clk 0:01:45.3]} 10. Nd2 {[%clk 0:02:55.1]} 10... Nd7 {[%clk 0:01:18.7]} 11.
Na4 {[%clk 0:02:54]} 11... Nxb6 {[%clk 0:00:35.5]} 12. Nxb6 {[%clk 0:02:53.1]}
12... Rb8 {[%clk 0:00:36.4]} 13. Ndc4 {[%clk 0:02:52.9]} 13... d5 {[%clk
0:00:16.3]} 14. exd5 {[%clk 0:02:51.9]} 14... exd5 {[%clk 0:00:17.2]} 15. Nxd5
{[%clk 0:02:50.5]} 15... Bg5+ {[%clk 0:00:17.6]} 16. f4 {[%clk 0:02:49.5]} 16...
Bd8 {[%clk 0:00:17.5]} 17. Nd6+ {[%clk 0:02:46.2]} 17... Kf8 {[%clk 0:00:17.9]}
18. Nxc8 {[%clk 0:02:44]} 18... Rxc8 {[%clk 0:00:18.8]} 19. c3 {[%clk
0:02:41.2]} 19... g6 {[%clk 0:00:16.8]} 20. g3 {[%clk 0:02:40.2]} 20... Kg7
{[%clk 0:00:17.3]} 21. Bh3 {[%clk 0:02:39.1]} 21... f5 {[%clk 0:00:16.5]} 22.
Bg2 {[%clk 0:02:38.9]} 22... Re8 {[%clk 0:00:16]} 23. Rhe1 {[%clk 0:02:38.2]}
23... Ba5 {[%clk 0:00:15.4]} 24. Kb1 {[%clk 0:02:27]} 24... Rxe1 {[%clk
0:00:12]} 25. Rxe1 {[%clk 0:02:26.3]} 25... Rf8 {[%clk 0:00:06.7]} 26. Kc2
{[%clk 0:02:17.6]} 26... Kf7 {[%clk 0:00:05.3]} 27. b4 {[%clk 0:02:16.3]} 27...
Bd8 {[%clk 0:00:05.3]} 28. Bf3 {[%clk 0:02:11.3]} 28... Re8 {[%clk 0:00:05.5]}
29. Rd1 {[%clk 0:02:11.9]} 29... Na7 {[%clk 0:00:02.2]} 30. a4 {[%clk
0:02:08.9]} 30... b6 {[%clk 0:00:01.8]} 31. Kb3 {[%clk 0:02:02.7]} 31... a5
{[%clk 0:00:02.1]} 32. Rd4 {[%clk 0:01:49.1]} 32... Nc6 {[%clk 0:00:02]} 33. Rc4
{[%clk 0:01:48.2]} 33... Re6 {[%clk 0:00:02.4]} 34. Nxb6 {[%clk 0:01:41.2]}
34... Bxb6 {[%clk 0:00:02.3]} 35. Bxc6 {[%clk 0:01:35.7]} 35... Ke7 {[%clk
0:00:01.7]} 36. Bd5 {[%clk 0:01:30]} 36... Re3 {[%clk 0:00:01.8]} 37. Rc6 {[%clk
0:01:29.5]} 37... Bd8 {[%clk 0:00:01.6]} 38. b5 {[%clk 0:01:27.5]} 38... Kd7
{[%clk 0:00:01.5]} 39. b6 {[%clk 0:01:26]} 39... Rd3 {[%clk 0:00:01.7]} 40. b7
{[%clk 0:01:25.1]} 1-0

[Event "*** Titled Tuesday Blitz"]
[Site "Chess.com"]
[Date "2020.03.03"]
[Round "7"]
[White "Kislov_Oleg"]
[Black "CrushingKings"]
[Result "0-1"]
[WhiteElo "2526"]
[BlackElo "2252"]
[TimeControl "180+1"]
[EndTime "14:15:05 PST"]
[Termination "CrushingKings won by resignation"]

1. e4 {[%clk 0:03:00.2]} 1... c5 {[%clk 0:02:59.9]} 2. Nf3 {[%clk 0:02:59.7]}
2... e6 {[%clk 0:03:00.4]} 3. c3 {[%clk 0:03:00.1]} 3... Nc6 {[%clk 0:02:44.6]}
4. d4 {[%clk 0:02:59.5]} 4... cxd4 {[%clk 0:02:44.3]} 5. cxd4 {[%clk 0:02:59.2]}
5... d5 {[%clk 0:02:44.7]} 6. e5 {[%clk 0:02:58.5]} 6... Qb6 {[%clk 0:02:43]} 7.
Nc3 {[%clk 0:02:55.4]} 7... Bd7 {[%clk 0:02:41.8]} 8. Be2 {[%clk 0:02:44.5]}
8... Nh6 {[%clk 0:02:41.8]} 9. O-O {[%clk 0:02:41.1]} 9... Nf5 {[%clk
0:02:41.7]} 10. Na4 {[%clk 0:02:37.6]} 10... Qd8 {[%clk 0:02:38.6]} 11. g4
{[%clk 0:02:31.2]} 11... Nh4 {[%clk 0:02:29.2]} 12. Be3 {[%clk 0:02:27.2]} 12...
h5 {[%clk 0:02:15.8]} 13. g5 {[%clk 0:02:16.4]} 13... Nxf3+ {[%clk 0:02:11.5]}
14. Bxf3 {[%clk 0:02:16.2]} 14... h4 {[%clk 0:02:12.1]} 15. g6 {[%clk
0:02:04.5]} 15... f6 {[%clk 0:01:36.6]} 16. Kh1 {[%clk 0:01:50.8]} 16... fxe5
{[%clk 0:01:32.3]} 17. dxe5 {[%clk 0:01:51]} 17... Nxe5 {[%clk 0:01:32.3]} 18.
Nc5 {[%clk 0:01:36.3]} 18... Bc6 {[%clk 0:00:54.3]} 19. Nxe6 {[%clk 0:01:31.5]}
19... Qf6 {[%clk 0:00:52.2]} 20. Nc7+ {[%clk 0:01:22.7]} 20... Kd7 {[%clk
0:00:43.2]} 21. Nxa8 {[%clk 0:00:41.5]} 21... Nxf3 {[%clk 0:00:43.3]} 22. Bd4
{[%clk 0:00:16.5]} 22... Nxd4 {[%clk 0:00:43.1]} 23. f3 {[%clk 0:00:16.9]} 23...
Bd6 {[%clk 0:00:40.9]} 24. Qd3 {[%clk 0:00:16.2]} 24... Rxa8 {[%clk 0:00:37.3]}
25. Rad1 {[%clk 0:00:16.4]} 25... Nf5 {[%clk 0:00:37.1]} 26. a3 {[%clk
0:00:15.7]} 26... d4 {[%clk 0:00:35.2]} 27. b4 {[%clk 0:00:16]} 27... a6 {[%clk
0:00:33.7]} 28. Rd2 {[%clk 0:00:15.4]} 28... Ne3 {[%clk 0:00:31.5]} 29. Rg1
{[%clk 0:00:14.5]} 29... Qxf3+ {[%clk 0:00:31.1]} 0-1